[Event "44th Chess Olympiad Open 2022"]
[Site "Chennai"]
[Date "2022.08.06"]
[Round "8.32"]
[White "Meier, Georg"]
[Black "Sanchez Alvarez, Roberto Carlos"]
[Result "1/2-1/2"]
[WhiteElo "2613"]
[BlackElo "2431"]
[Annotator "TA"]
[PlyCount "88"]
[EventDate "2022.??.??"]
[TimeControl "60"]

{[%evp 10,88,10,17,16,11,12,12,12,7,1,-2,17,19,16,19,21,23,25,22,15,-33,-16,
-27,-30,-42,-35,-30,-32,-54,-28,-33,-29,-75,-52,-129,-63,-75,-66,-66,-72,-62,
-74,-75,-51,-61,-46,-42,-29,-32,-22,-40,0,0,0,0,0,0,0,-33,-8,-13,0,0,0,0,0,0,0,
0,0,0,0,0,0,0,0,0,0,0,0]} 1. Nf3 {[%emt 0:00:04]} Nf6 {[%emt 0:00:12]} 2. g3 {
[%emt 0:00:08]} c5 {[%emt 0:00:14]} 3. Bg2 {[%emt 0:00:27]} Nc6 {[%emt 0:00:14]
} 4. c4 {[%emt 0:00:20]} d5 {[%emt 0:00:38]} 5. cxd5 {[%emt 0:00:35]} Nxd5 {
[%emt 0:00:08]} 6. Nc3 {[%emt 0:00:08]} Nxc3 {[%emt 0:00:12] A34: Symmetrical
English: 2 Nc3, lines with ...d5.} 7. dxc3 {[%emt 0:01:26]} Qxd1+ {[%emt 0:00:
00]} 8. Kxd1 {[%emt 0:08:20]} Bd7 {[%emt 0:10:24]} 9. Be3 {[%emt 0:00:00]} e5 {
[%emt 0:01:24]} 10. Kc2 {[%emt 0:00:00]} Bf5+ {[%emt 0:01:16]} 11. Kc1 {
[%emt 0:00:00] [#]} Be4 $146 {[%emt 0:03:23]} ({Predecessor:} 11... Be7 12. Rd1
Rc8 13. b3 O-O 14. Kb2 b5 15. Nh4 Bg4 16. h3 Be6 17. Rac1 c4 18. b4 f5 {
1-0 (51) Kovalenko,I (2645)-Jones,G (2670) Playchess.com INT 2020}) 12. Rd1 {
[%emt 0:11:50]} Be7 {[%emt 0:14:33]} 13. Bh3 {[%emt 0:00:00] And now Bd7+
would win.} Rd8 {[%emt 0:05:23] Prevents Bd7+.} 14. Nd2 {[%emt 0:00:00][%cal
Yf3d2,Yd2c4,Yc4e5]} Bg6 {[%emt 0:07:45][%cal Yc6d4]} 15. Bg2 {[%emt 0:00:00] 
[#]} (15. Nc4 $11 {might be stronger.}) 15... Nd4 $1 $15 {[%emt 0:09:39]} 16.
Bxd4 {[%emt 0:09:38]} cxd4 {[%emt 0:00:00]} 17. Nc4 {[%emt 0:12:01]} Rc8 {
[%emt 0:20:58]} 18. Nxe5 {[%emt 0:03:05]} dxc3 {[%emt 0:00:00]} 19. e4 {
[%emt 0:06:51]} ({Avoid the trap} 19. Bxb7 $2 cxb2+ 20. Kxb2 Rb8 21. Nxg6 Rxb7+
22. Kc2 hxg6 $19) ({Reject} 19. Nxg6 hxg6 20. bxc3 Rxh2 $17) 19... Bf6 {
[%emt 0:00:00]} (19... f6 $5 {[%cal Rf6e5]} 20. Nd3 Bd6 $15) 20. Rd5 {[%emt 0:
00:00]} O-O {[%emt 0:05:40] [#] White must now prevent ...Rfd8.} 21. f4 {
[%emt 0:06:28]} (21. bxc3 $11 {is superior.} Rxc3+ 22. Kd2) 21... Rfe8 {
[%emt 0:07:23]} 22. Kc2 {[%emt 0:01:56]} (22. a4 $15) 22... Bxe5 {[%emt 0:00:
00]} ({Black should play} 22... cxb2+ $17 23. Kxb2 Re6) 23. Rxe5 {[%emt 0:00:
00]} Rxe5 {[%emt 0:00:00]} 24. fxe5 {[%emt 0:00:07]} cxb2+ {[%emt 0:00:00]} 25.
Kxb2 $17 {[%emt 0:00:02] Endgame KRB-KRB} Kf8 {[%emt 0:00:00]} 26. Rd1 {
[%emt 0:01:29]} Ke8 {[%emt 0:00:00] Against Rd7} 27. Bf3 {[%emt 0:07:25]} Rc5 {
[%emt 0:00:00]} 28. Rd5 {[%emt 0:00:28]} Rc4 {[%emt 0:00:00]} 29. Be2 {[%emt 0:
01:59]} Rc7 {[%emt 0:05:41]} 30. Bd3 {[%emt 0:03:27]} h5 {[%emt 0:00:00]} 31.
a4 {[%emt 0:02:14]} Ke7 {[%emt 0:00:58]} 32. a5 {[%emt 0:04:40]} b6 {[%emt 0:
03:03]} 33. axb6 {[%emt 0:00:00]} axb6 {[%emt 0:00:02]} 34. Rb5 {[%emt 0:00:13]
} Rc6 {[%emt 0:04:11]} 35. Kb3 {[%emt 0:01:38] The position is equal.} Rc5 {
[%emt 0:00:52] aiming for ...Rxb5+.} 36. Rxb6 {[%emt 0:00:38]} Rxe5 {[%emt 0:
00:06]} 37. Kc3 {[%emt 0:00:06]} h4 {[%emt 0:00:41]} ({Resist} 37... Bxe4 38.
Kd4 $16) 38. Kd4 {[%emt 0:00:56]} f6 {[%emt 0:02:20]} 39. gxh4 {[%emt 0:01:33]}
Rh5 {[%emt 0:00:40]} 40. Rb7+ {[%emt 0:01:26]} Kf8 {[%emt 0:00:00]} 41. Rb8+ {
[%emt 0:30:48]} Ke7 {[%emt 0:30:39]} 42. Rg8 {[%emt 0:01:39]} Rh7 {[%emt 0:00:
27]} 43. h5 {[%emt 0:00:29]} Bf7 {[%emt 0:00:08]} 44. Ra8 {[%emt 0:00:14]} Rxh5
{[%emt 0:00:07] Weighted Error Value: White=0.08 (flawless) /Black=0.07 
(flawless)} 1/2-1/2

[Event "44th Chess Olympiad Open 2022"]
[Site "Chennai"]
[Date "2022.08.06"]
[Round "8.32"]
[White "Vazquez Facundo"]
[Black "Ramos Espinoza, Efren Andres"]
[Result "1-0"]
[WhiteElo "2336"]
[BlackElo "2158"]
[Annotator "RC"]
[PlyCount "75"]
[EventDate "2022.??.??"]
[TimeControl "60"]

1. d4 {[%emt 0:00:04]} Nf6 {[%emt 0:00:16]} 2. c4 {[%emt 0:00:09]} e6 {[%emt 0:
00:00]} 3. Nc3 {[%emt 0:00:20]} d5 {[%emt 0:00:24]} 4. cxd5 {[%emt 0:00:41]}
Nxd5 {[%emt 0:02:13]} 5. e4 {[%emt 0:02:47]} Nxc3 {[%emt 0:00:09]} 6. bxc3 {
[%emt 0:00:02]} c5 {[%emt 0:00:30]} 7. Nf3 {[%emt 0:01:43]} cxd4 {[%emt 0:00:
00]} 8. cxd4 {[%emt 0:00:11]} Bb4+ {[%emt 0:00:09]} 9. Bd2 {[%emt 0:00:57]}
Bxd2+ {[%emt 0:00:07]} 10. Qxd2 {[%emt 0:00:06]} O-O {[%emt 0:00:19]} 11. Bc4 {
[%emt 0:02:14]} Nd7 {[%emt 0:01:42]} 12. O-O {[%emt 0:01:56]} b6 {[%emt 0:00:
00]} 13. d5 {[%emt 0:07:46]} Nc5 {[%emt 0:05:49]} 14. Rad1 {[%emt 0:06:17]} Bb7
{[%emt 0:03:37]} 15. dxe6 {[%emt 0:06:09]} fxe6 {[%emt 0:00:51]} 16. Qe3 {
[%emt 0:06:03]} Qe7 {[%emt 0:08:39]} 17. Nd4 {[%emt 0:03:34]} Kh8 {[%emt 0:00:
00]} 18. e5 {[%emt 0:06:50]} a6 {[%emt 0:06:09]} 19. Nb3 {[%emt 0:04:53]} Rac8
{[%emt 0:13:37]} 20. Nxc5 {[%emt 0:11:13]} Rxc5 {[%emt 0:02:33]} 21. Bb3 {
[%emt 0:00:11]} Bd5 {[%emt 0:11:00]} 22. Bxd5 {[%emt 0:01:39]} exd5 {[%emt 0:
00:00]} 23. f4 {[%emt 0:04:47]} Kg8 {[%emt 0:04:06]} 24. f5 {[%emt 0:01:40]} d4
{[%emt 0:00:09]} 25. Qb3+ {[%emt 0:00:51]} Kh8 {[%emt 0:00:51]} 26. Qxb6 {
[%emt 0:08:48]} Qxe5 {[%emt 0:01:08]} 27. f6 {[%emt 0:02:33]} gxf6 {[%emt 0:00:
00]} 28. Rde1 {[%emt 0:00:58]} Qd5 {[%emt 0:01:36]} 29. Rxf6 {[%emt 0:03:25]}
Rg8 {[%emt 0:01:15]} 30. Qb2 {[%emt 0:01:31]} Rb5 {[%emt 0:04:05]} 31. Qf2 {
[%emt 0:01:08]} Qb7 {[%emt 0:11:59]} 32. Rf8 {[%emt 0:02:18]} Qb6 {[%emt 0:00:
00]} 33. Rxg8+ {[%emt 0:00:31]} Kxg8 {[%emt 0:00:09]} 34. Re8+ {[%emt 0:00:32]}
Kg7 {[%emt 0:00:14]} 35. Re7+ {[%emt 0:00:26]} Kg6 {[%emt 0:00:12]} 36. Qf7+ {
[%emt 0:00:57]} Kg5 {[%emt 0:00:19]} 37. h4+ {[%emt 0:00:16]} Kxh4 {[%emt 0:00:
00]} 38. Qf4+ {[%emt 0:00:20]} 1-0

[Event "44th Chess Olympiad Open 2022"]
[Site "Chennai"]
[Date "2022.08.06"]
[Round "8.32"]
[White "Tapia Ostolaza, Alexei"]
[Black "Diaz Hollemaert, Nahuel"]
[Result "0-1"]
[WhiteElo "2201"]
[BlackElo "2425"]
[Annotator "TA"]
[PlyCount "60"]
[EventDate "2022.??.??"]
[TimeControl "60"]

{[%evp 9,60,0,0,-19,-22,-29,-22,-35,-20,-40,-41,-40,-45,-60,-58,-64,-61,-112,
-123,-177,-164,-170,-175,-207,-200,-208,-166,-154,-148,-145,-163,-147,-148,
-153,-77,-109,-96,-116,-83,-179,-175,-324,-310,-296,-201,-204,-197,-206,-208,
-208,-195,-497,-502]} 1. Nf3 {[%emt 0:00:04]} c5 {[%emt 0:00:37]} 2. g3 {
[%emt 0:00:29]} g6 {[%emt 0:00:37]} 3. Bg2 {[%emt 0:01:06]} Bg7 {[%emt 0:00:05]
} 4. O-O {[%emt 0:00:23]} Nc6 {[%emt 0:00:05]} 5. e4 {[%emt 0:04:01]} d6 {
[%emt 0:06:27]} 6. h3 {[%emt 0:02:27] B50: Sicilian: 2...d6, Miscellaneous.} e5
{[%emt 0:04:08]} 7. d3 {[%emt 0:02:08]} Nge7 {[%emt 0:00:41]} 8. Be3 {[%emt 0:
00:00] The position is equal.} h6 {[%emt 0:03:43]} 9. c3 {[%emt 0:03:10]} O-O {
[%emt 0:12:08]} 10. Qd2 {[%emt 0:04:19]} Kh7 {[%emt 0:04:31]} 11. d4 {[%emt 0:
00:00]} exd4 {[%emt 0:06:00]} 12. cxd4 {[%emt 0:01:54]} d5 {[%emt 0:00:02] [#]}
(12... f5 {feels hotter.} 13. Nc3 fxe4 14. Nxe4 Rxf3 15. Bxf3 cxd4 16. Bf4 d5)
13. dxc5 $146 {[%emt 0:24:24]} (13. e5 $15) ({Predecessor:} 13. exd5 Nxd5 14.
Rd1 Nxe3 15. fxe3 cxd4 16. exd4 Qb6 17. Nc3 Rd8 18. Ne2 Be6 19. Kh2 {0-1 (41)
Sufiyarov,A (2256)-Bocharov,D (2385) Novokuznetsk 2001}) 13... dxe4 $17 {
[%emt 0:00:42]} 14. Nh2 {[%emt 0:00:44]} (14. Ne1 $17) 14... Qxd2 {[%emt 0:00:
00]} 15. Nxd2 {[%emt 0:00:19] [#]} f5 {[%emt 0:00:07]} (15... Bxb2 16. Rab1 Bd4
17. Bxd4 Nxd4 18. Nxe4 $11) 16. Nc4 {[%emt 0:12:23]} Be6 {[%emt 0:03:08]} 17.
Rfc1 {[%emt 0:01:38]} Nb4 {[%emt 0:04:41]} 18. Bf1 {[%emt 0:03:27]} Ned5 {
[%emt 0:09:19][%cal Ye7d5,Yd5f6,Yf6e4]} 19. a3 {[%emt 0:16:58]} Nd3 {[%emt 0:
00:00] Black is more active.} 20. Bxd3 {[%emt 0:04:30]} exd3 {[%emt 0:00:00]}
21. Bd2 {[%emt 0:01:27]} Rac8 {[%emt 0:09:52]} (21... Nf6 $142 {Hoping for ...
Ne4.} 22. Bc3 Rac8) 22. Re1 {[%emt 0:02:21]} Bg8 {[%emt 0:01:34] Strongly
threatening ...Nf6. This bishop pair is nice.} 23. Ne5 {[%emt 0:00:36]} Nf6 $36
{[%emt 0:05:31] Black has strong initiative.} (23... Rxc5 $6 24. Nd7 Rc2 25.
Nxf8+ Bxf8 26. Nf3 $11) 24. Nhf3 {[%emt 0:01:43]} (24. Nxd3 $17 Rfd8 25. Re3)
24... Ne4 $19 {[%emt 0:02:03] Threatens to win with ...Rfe8.} 25. Be3 {[%emt 0:
00:25]} (25. c6 {was necessary.}) 25... Rfd8 {[%emt 0:04:35]} ({Less strong is
} 25... Nxc5 26. Bxc5 Rxc5 27. Nd7 $14) 26. Rad1 {[%emt 0:00:00]} Bxe5 {
[%emt 0:00:22]} ({And not} 26... Nxc5 27. Bxc5 d2 28. Rxd2 Rxd2 29. Nxd2 $17)
27. Nxe5 {[%emt 0:00:00]} d2 {[%emt 0:00:11]} 28. Re2 {[%emt 0:02:12]} Bb3 {
[%emt 0:00:37]} 29. Rdxd2 {[%emt 0:00:20]} Nxd2 {[%emt 0:00:27]} ({Stronger
than} 29... Rxd2 30. Bxd2 Rxc5 31. Bc3 $17) 30. Bxd2 {[%emt 0:00:03] [#]} (30.
Rxd2 Rxd2 31. Bxd2) 30... Bd1 {[%emt 0:00:16] Weighted Error Value: White=0.36/
Black=0.14 (very precise)} 0-1

[Event "44th Chess Olympiad Open 2022"]
[Site "Chennai"]
[Date "2022.08.06"]
[Round "8.32"]
[White "Leon Archibaldo, Orlando Andres"]
[Black "Roselli Mailhe, Bernardo"]
[Result "1/2-1/2"]
[WhiteElo "2193"]
[BlackElo "2413"]
[Annotator "RC"]
[PlyCount "88"]
[EventDate "2022.??.??"]
[TimeControl "60"]

1. e4 {[%emt 0:00:07]} c5 {[%emt 0:00:57]} 2. Nf3 {[%emt 0:00:13]} e6 {[%emt 0:
00:00]} 3. d4 {[%emt 0:00:06]} cxd4 {[%emt 0:00:03]} 4. Nxd4 {[%emt 0:00:09]}
Nf6 {[%emt 0:00:03]} 5. Nc3 {[%emt 0:00:16]} Nc6 {[%emt 0:00:04]} 6. Nxc6 {
[%emt 0:00:20]} bxc6 {[%emt 0:00:05]} 7. e5 {[%emt 0:00:14]} Nd5 {[%emt 0:00:
00]} 8. Ne4 {[%emt 0:00:07]} Qa5+ {[%emt 0:06:56]} 9. Bd2 {[%emt 0:05:45]} Qc7
{[%emt 0:00:17]} 10. f4 {[%emt 0:00:11]} Qb6 {[%emt 0:00:49]} 11. Bd3 {[%emt 0:
00:00]} Be7 {[%emt 0:08:08]} 12. Qg4 {[%emt 0:12:30]} g6 {[%emt 0:06:25]} 13.
Qe2 {[%emt 0:02:55]} f5 {[%emt 0:14:29]} 14. exf6 {[%emt 0:02:54]} Nxf6 {
[%emt 0:05:05]} 15. Bc3 {[%emt 0:08:39]} Rf8 {[%emt 0:04:17]} 16. g3 {[%emt 0:
00:00]} Nxe4 {[%emt 0:12:15]} 17. Qxe4 {[%emt 0:04:39]} d5 {[%emt 0:13:58]} 18.
Qe2 {[%emt 0:10:10]} c5 {[%emt 0:03:09]} 19. b3 {[%emt 0:00:40]} Bb7 {[%emt 0:
00:00]} 20. Be5 {[%emt 0:02:47]} O-O-O {[%emt 0:02:36]} 21. Rf1 {[%emt 0:00:35]
} Bd6 {[%emt 0:10:13]} 22. Bxd6 {[%emt 0:04:14]} Rxd6 {[%emt 0:01:16]} 23.
O-O-O {[%emt 0:08:40]} c4 {[%emt 0:02:44]} 24. bxc4 {[%emt 0:00:43]} Qa5 {
[%emt 0:01:25]} 25. Qe5 {[%emt 0:01:18]} Rfd8 {[%emt 0:00:37]} 26. c5 {[%emt 0:
00:00]} Qxc5 {[%emt 0:01:21]} 27. g4 {[%emt 0:00:18]} Qa3+ {[%emt 0:00:50]} 28.
Qb2 {[%emt 0:00:19]} Qa5 {[%emt 0:00:09]} 29. f5 {[%emt 0:00:22]} Rb6 {[%emt 0:
00:00]} 30. Qe5 {[%emt 0:00:17]} exf5 {[%emt 0:02:07]} 31. gxf5 {[%emt 0:00:03]
} Qa3+ {[%emt 0:00:45]} 32. Kd2 {[%emt 0:00:02]} d4 {[%emt 0:00:21]} 33. fxg6 {
[%emt 0:01:11]} Qc3+ {[%emt 0:00:34]} 34. Ke2 {[%emt 0:02:22]} hxg6 {[%emt 0:
00:00]} 35. Rf6 {[%emt 0:01:14]} Rxf6 {[%emt 0:00:39]} 36. Qxf6 {[%emt 0:00:01]
} Qc7 {[%emt 0:00:49]} 37. Qf2 {[%emt 0:01:00]} Rh8 {[%emt 0:00:32]} 38. h4 {
[%emt 0:00:24]} Qe7+ {[%emt 0:00:16]} 39. Kd2 {[%emt 0:00:09]} Rxh4 {[%emt 0:
00:00]} 40. Kc1 {[%emt 0:00:55]} Qa3+ {[%emt 0:00:49]} 41. Kb1 {[%emt 0:30:08]}
Qb4+ {[%emt 0:01:08]} 42. Kc1 {[%emt 0:00:00]} Qa3+ {[%emt 0:02:10]} 43. Kb1 {
[%emt 0:00:00]} Qb4+ {[%emt 0:01:29]} 44. Kc1 {[%emt 0:00:00]} Qa3+ {[%emt 0:
00:00]} 1/2-1/2

[Event "44th Chess Olympiad Open 2022"]
[Site "Chennai"]
[Date "2022.08.06"]
[Round "8.33"]
[White "Galego, Luis"]
[Black "Abdulwahhab, Ahmed Abdulsattar A"]
[Result "1-0"]
[WhiteElo "2462"]
[BlackElo "2251"]
[Annotator "TA"]
[PlyCount "67"]
[EventDate "2022.??.??"]
[TimeControl "60"]

{[%evp 9,67,29,25,30,40,13,27,-18,-16,-16,-13,-13,0,-14,29,25,32,27,26,39,20,
30,27,22,27,26,27,26,18,25,20,20,51,27,25,18,44,52,168,71,68,63,78,77,233,244,
503,496,495,466,481,446,409,434,614,589,29991,29992,29992,749]} 1. e4 {[%emt 0:
00:00]} c5 {[%emt 0:00:20]} 2. Nf3 {[%emt 0:00:07]} e6 {[%emt 0:00:17]} 3. Nc3
{[%emt 0:01:07]} a6 {[%emt 0:00:55]} 4. g3 {[%emt 0:00:52]} Nc6 {[%emt 0:01:45]
} 5. Bg2 {[%emt 0:00:04]} Qc7 {[%emt 0:01:07]} 6. O-O {[%emt 0:00:25] B40:
Sicilian: 2...e6, Unusual lines.} d6 {[%emt 0:01:28]} 7. d3 {[%emt 0:01:40]}
Nf6 {[%emt 0:02:50]} 8. Ng5 {[%emt 0:01:29] White has an edge.} Be7 {[%emt 0:
00:00]} 9. f4 {[%emt 0:00:05]} O-O {[%emt 0:01:00]} 10. g4 {[%emt 0:07:34]
[%cal Yg3g4,Yg4g5] [#]} Bd7 $146 {[%emt 0:11:19]} ({Predecessor:} 10... Rb8 11.
Nh3 Re8 12. g5 Nd7 13. Ne2 b5 14. Ng3 Bf8 15. Qh5 c4 16. f5 cxd3 17. fxe6 {
½-½ (26) Villalba,M (2203)-Silva,L (2081) Foz do Iguacu 2013}) 11. Nh3 {
[%emt 0:02:15]} Nd4 {[%emt 0:04:20]} 12. g5 {[%emt 0:01:48]} Ne8 {[%emt 0:00:
00]} 13. Ne2 {[%emt 0:00:20]} Nxe2+ {[%emt 0:12:13]} 14. Qxe2 {[%emt 0:00:00]}
c4 {[%emt 0:00:20][%cal Yd6d5]} 15. f5 {[%emt 0:02:56]} cxd3 {[%emt 0:00:00]}
16. cxd3 {[%emt 0:00:02]} d5 {[%emt 0:05:36]} 17. f6 {[%emt 0:10:37]} Bc5+ {
[%emt 0:02:42]} 18. Kh1 {[%emt 0:02:18]} dxe4 {[%emt 0:00:38]} 19. fxg7 {
[%emt 0:01:29]} Nxg7 {[%emt 0:00:10] Hoping for ...exd3.} 20. Bxe4 {[%emt 0:00:
00]} Bc6 {[%emt 0:00:24]} 21. Bf4 {[%emt 0:01:24]} e5 {[%emt 0:00:57]} 22. Bg3
{[%emt 0:02:54]} Bd4 {[%emt 0:06:04]} 23. Nf2 {[%emt 0:01:58]} Ne6 {[%emt 0:00:
00] [#]} (23... Bxf2 $14 24. Rxf2 (24. Qxf2 Bxe4+ 25. dxe4 Nh5 $11) 24... Rfe8)
24. Qh5 {[%emt 0:09:00]} (24. Ng4 $1 $18 {[%cal Rg4f6] and White stays clearly
on top. Nf6+ is the strong threat.} Nf4 25. Qf3 Bxe4 26. Qxe4 (26. Nf6+ Kh8 $16
)) 24... f5 $16 {[%emt 0:06:30]} 25. gxf6 $1 {[%emt 0:00:08]} Rxf6 {[%emt 0:00:
00] Strongly threatening ...Raf8.} 26. Ng4 {[%emt 0:01:41][%csl Ye5,Yf6] The
board is on fire.} Rxf1+ {[%emt 0:02:44] A mistake that costs the game.} (26...
Rg6 $16) 27. Rxf1 $18 {[%emt 0:00:08] Threatening mate with Nh6+.} Bxe4+ $2 {
[%emt 0:00:46]} (27... Rf8 28. Nh6+ (28. Rxf8+ Nxf8 29. Qg5+ Ng6 $14) 28... Kh8
29. Nf7+ Rxf7 30. Qxf7 (30. Rxf7 Bxe4+ 31. dxe4 Qc1+ 32. Kg2 Qd2+ 33. Kh1 Qc1+
34. Kg2 Qd2+ 35. Kf1 Qc1+ 36. Be1 Qc4+ 37. Qe2 Qc8 $18) 30... Qxf7 31. Rxf7 Ng5
32. Bxc6 Nxf7) 28. dxe4 {[%emt 0:00:07] aiming for Nf6+.} Rf8 {[%emt 0:00:09]}
29. Nh6+ {[%emt 0:00:53]} ({Weaker is} 29. Rxf8+ Nxf8 30. Qg5+ (30. Nxe5 Qc1+
31. Kg2 Qg1+ 32. Kh3 Qf1+ 33. Kg4 Qe2+ 34. Kg5 Ne6+ 35. Kh4 Qxe4+ 36. Kh3 Nf4+
37. Bxf4 Qxf4 $11) (30. Nh6+ Kh8 $16) 30... Ng6 $16) 29... Kh8 {[%emt 0:08:34]}
30. Nf7+ {[%emt 0:00:35]} Rxf7 {[%emt 0:00:18]} 31. Qxf7 {[%emt 0:02:05]} Qc6 {
[%emt 0:02:05]} (31... Qxf7 $142 32. Rxf7 Nc5) 32. Qf5 {[%emt 0:00:47]} Qd6 {
[%emt 0:00:53]} 33. Qf6+ {[%emt 0:00:39]} Kg8 {[%emt 0:00:07] [#]} 34. Bxe5 $1
{[%emt 0:03:48] Weighted Error Value: White=0.08 (flawless) /Black=0.47} 1-0

[Event "44th Chess Olympiad Open 2022"]
[Site "Chennai"]
[Date "2022.08.06"]
[Round "8.33"]
[White "Veiga, Jose Francisco R P "]
[Black "Ahmed, Ali Layth Ahmed"]
[Result "1-0"]
[WhiteElo "2378"]
[BlackElo "2249"]
[Annotator "TA"]
[PlyCount "77"]
[EventDate "2022.??.??"]
[TimeControl "60"]

{[%evp 10,77,34,11,20,17,32,14,23,18,31,12,25,21,50,16,58,0,0,-41,16,23,82,83,
94,89,94,86,99,94,83,95,72,38,54,-2,57,39,36,39,120,77,95,91,72,74,160,162,382,
366,574,577,565,555,571,553,667,647,697,697,1354,957,960,935,807,567,1033,1023,
975,960]} 1. e4 {[%emt 0:00:02]} c6 {[%emt 0:00:06]} 2. Nc3 {[%emt 0:00:15]} d5
{[%emt 0:00:05]} 3. d4 {[%emt 0:00:15]} dxe4 {[%emt 0:00:06]} 4. Nxe4 {[%emt 0:
00:00]} Nf6 {[%emt 0:00:18]} 5. Nxf6+ {[%emt 0:00:28]} exf6 {[%emt 0:00:02]} 6.
Be3 {[%emt 0:00:18]} Bd6 {[%emt 0:00:20] B15: Caro-Kann: 3 Nc3:3...g6 and 3...
dxe4 4 Nxe4 Nf6 5 Nxf6+ exf6.} 7. Bd3 {[%emt 0:00:29]} O-O {[%emt 0:01:40]} 8.
Ne2 {[%emt 0:00:50]} ({Reject} 8. Qh5 g6 9. Qd1 Re8 $11) 8... Re8 {[%emt 0:00:
00] The position is equal.} 9. O-O {[%emt 0:02:59]} Qc7 {[%emt 0:03:52]} 10. h3
{[%emt 0:00:35] [#]} Be6 $146 {[%emt 0:03:44]} ({Predecessor:} 10... Nd7 11. c4
Nf8 12. Qd2 Be6 13. Rac1 Qd7 14. Bf4 Rad8 15. Rfd1 Be7 16. Qa5 b6 {0-1 (43)
Adams,M (2700)-Speelman,J (2504) London 2021}) 11. c4 {[%emt 0:00:44]} Qd7 {
[%emt 0:07:38]} 12. Qc2 {[%emt 0:11:25]} g6 {[%emt 0:02:29][%cal Ye6h3]} (12...
Na6 {keeps more tension.} 13. a3 Bxh3 14. Bxh7+ Kh8) 13. Rfe1 {[%emt 0:01:47]}
(13. Nc3 $14) 13... Na6 $11 {[%emt 0:00:50]} 14. a3 {[%emt 0:00:11] [#]
Against Nb4} Nc7 {[%emt 0:06:42]} (14... Bxh3 $1 $15 15. gxh3 (15. Ng3 Bxg3)
15... Qxh3) 15. Nf4 {[%emt 0:01:58]} Bxf4 {[%emt 0:20:28]} (15... b5 $11 {
remains equal.}) 16. Bxf4 $16 {[%emt 0:00:19]} Re7 {[%emt 0:02:10]} 17. Rad1 {
[%emt 0:14:51]} Rc8 {[%emt 0:05:06]} 18. Qc3 {[%emt 0:02:42][%cal Yd4d5]} Ne8 {
[%emt 0:04:04]} 19. Qb4 {[%emt 0:07:58][%cal Yd4d5] Threatens to win with d5!}
Qd8 {[%emt 0:03:54] Inhibits d5.} 20. Be4 {[%emt 0:09:35][%cal Yd3e4,Ye4f3,
Yf3g2,Yg2c6]} a5 {[%emt 0:06:29]} 21. Qc3 {[%emt 0:02:40]} Rd7 {[%emt 0:04:11]}
22. g4 {[%emt 0:10:19]} (22. a4 $14) 22... Nd6 {[%emt 0:01:09]} (22... Ng7 $11)
23. Bf3 $1 $14 {[%emt 0:01:10]} b5 {[%emt 0:04:22]} 24. b3 {[%emt 0:01:21]
[%cal Yb2b3,Yb3c4]} Ne8 {[%emt 0:07:19] Black is on the road to losing.} ({
Better is} 24... g5 $14 25. Bxd6 Rxd6) 25. a4 {[%emt 0:00:00]} bxc4 {[%emt 0:
04:16]} 26. bxc4 {[%emt 0:00:02]} Nd6 {[%emt 0:00:57]} 27. Bg2 {[%emt 0:02:25]}
Ne8 {[%emt 0:02:16]} ({Black should play} 27... Kg7) 28. Qd3 $16 {[%emt 0:01:
33] And now d5 would win. 0x0.001f24f003dedp-1022s more active pieces.} Nc7 {
[%emt 0:03:39]} (28... g5) 29. Bxc6 $18 {[%emt 0:02:07] This bishop pair is
nice.} Bxc4 {[%emt 0:02:22]} (29... Na6 {is a better defense.} 30. Bxd7 Bxd7)
30. Qxc4 {[%emt 0:01:54] White is clearly winning.} Nd5 {[%emt 0:00:03]} 31.
Bg3 {[%emt 0:02:24]} Ne7 {[%emt 0:02:29] [#]} 32. Rxe7 {[%emt 0:01:23]} Qxe7 {
[%emt 0:00:46]} (32... Rxe7 33. Qb5) 33. d5 {[%emt 0:00:00][%cal Yd4d5,Yd5d6,
Yd6d7]} Rdd8 {[%emt 0:00:06]} 34. d6 {[%emt 0:00:00]} Qa7 {[%emt 0:00:30]} 35.
Qd5 {[%emt 0:00:12]} ({Not} 35. d7 Rxd7 36. Rxd7 Qxd7 37. Bxd7 Rxc4 $18) 35...
Qb6 {[%emt 0:00:14]} 36. Bb5 {[%emt 0:00:38]} Rc3 {[%emt 0:00:38]} 37. Qd4 {
[%emt 0:01:14]} Qc5 {[%emt 0:00:49]} 38. Qxc5 {[%emt 0:00:18]} Rxc5 {[%emt 0:
00:02]} 39. d7 {[%emt 0:00:12] Weighted Error Value: White=0.21 (precise) /
Black=0.39} 1-0